Workbook

Sheet App 2-JA
Q1: File Number: | R1: EB-2025-0252 | S1: 2016 | T1: Last Rebasing Year | U1: Column
Q2: Exhibit: | S2: =2027 -> 2027 | T2: 2010 | U2: B | V2: ae
Q3: Tab: | T3: 2011 | U3: D | V3: ah
A4: TO BE UPDATED AT THE DRAFT RATE ORDER STAGE | Q4: Schedule: | T4: 2012 | U4: G | V4: ak
Q5: Page: | T5: 2013 | U5: J | V5: an
T6: 2014 | U6: M | V6: aq
Q7: Date: | T7: 2015 | U7: P | V7: at
T8: 2016 | U8: S | V8: aw
A9: Appendix 2-JA | T9: 2017 | U9: V | V9: az
A10: Summary of Recoverable OM&A Expenses
C11: =2016 -> 2016 | D11: =2027-10 -> 2017 | E11: =2027-9 -> 2018 | F11: =2027-8 -> 2019 | G11: =2027-7 -> 2020 | H11: =2027-6 -> 2021 | I11: =2027-5 -> 2022 | J11: =2027-4 -> 2023 | K11: =2027-3 -> 2024 | L11: =2027-2 -> 2025 | M11: =2026 -> 2026 | N11: =2027 -> 2027 | O11: =N11+1 -> 2028 | P11: =O11+1 -> 2029 | Q11: 2030 | R11: 2031 | V11: =C11 -> 2016 | Y11: =D11 -> 2017 | Z11: 2018 | AA11: 2019 | AB11: 2020 | AC11: 2021 | AD11: 2022 | AE11: 2023 | AF11: 2024 | AG11: 2025 | AH11: 2026 | AJ11: =N11 -> 2027 | AL11: =O11 -> 2028 | AM11: =P11 -> 2029 | AN11: 2030 | AO11: 2031
B12: =CONCATENATE(C11," ",IF($S1=C11,"Last Rebasing Year ",""),"OEB Approved") -> 2016 Last Rebasing Year OEB Approved | C12: =CONCATENATE(C11," ",IF($S1=C11,"Last Rebasing Year ",""),"Actuals") -> 2016 Last Rebasing Year Actuals | D12: 2017 Actuals | E12: 2018 Actuals | F12: 2019 Actuals | G12: 2020 Actuals | H12: 2021 Actuals | I12: 2022 Actuals | J12: 2023 Actuals | K12: 2024 Actuals | L12: =CONCATENATE(L11," ",IF($S1=L11,"Last Rebasing Year ",""),"Bridge Year") -> 2025 Bridge Year | M12: =2026 & " Bridge Year" -> 2026 Bridge Year | N12: =2027 & " Test Year" -> 2027 Test Year | O12: =2027+1 & " Forecast Year" -> 2028 Forecast Year | P12: =2027+2 & " Forecast Year" -> 2029 Forecast Year | Q12: =2027+3 & " Forecast Year" -> 2030 Forecast Year | R12: =2027+4 & " Forecast Year" -> 2031 Forecast Year | V12: =CONCATENATE(IF($S1=V11,"Last Rebasing Year ",""),,V11," OEB Approved") -> Last Rebasing Year 2016 OEB Approved | W12: =CONCATENATE(IF($S1=V11,"Last Rebasing Year ",""),V11," Actuals") -> Last Rebasing Year 2016 Actuals | X12: =CONCATENATE("Variance ",V11," OEB Approved - ",V11," Actuals") -> Variance 2016 OEB Approved - 2016 Actuals | Y12: =CONCATENATE(IF($S1=Y11,"Last Rebasing Year ",""),Y11," Actuals") -> 2017 Actuals | Z12: 2018 Actuals | AA12: 2019 Actuals | AB12: 2020 Actuals | AC12: 2021 Actuals | AD12: 2022 Actuals | AE12: 2023 Actuals | AF12: 2024 Actuals | AG12: =CONCATENATE(IF($S1=AG11,"Last Rebasing Year ",""),AG11," Bridge Year") -> 2025 Bridge Year | AH12: =CONCATENATE(AH11," Bridge Year") -> 2026 Bridge Year | AI12: =CONCATENATE("Variance ",AH11," Bridge vs. ",AH11-1," Bridge") -> Variance 2026 Bridge vs. 2025 Bridge | AJ12: =CONCATENATE(AJ11," Test Year") -> 2027 Test Year | AK12: =CONCATENATE("Variance ",AJ11," Test vs. ",AJ11-1," Bridge") -> Variance 2027 Test vs. 2026 Bridge
A13: Reporting Basis | D13: MIFRS | E13: MIFRS | F13: MIFRS | G13: MIFRS | H13: MIFRS | I13: MIFRS | J13: MIFRS | K13: MIFRS | L13: MIFRS | M13: MIFRS | N13: MIFRS | O13: MIFRS | P13: MIFRS | Q13: MIFRS | R13: MIFRS | U13: Operations | V13: =B14 -> 0 | W13: =C14 ->  | X13: =V13-W13 ->  | Y13: =D14 -> 53256001.56 | Z13: 52729994.24 | AA13: 89541387.43 | AB13: 84136002.69 | AC13: 83214862.07 | AD13: 93267998.23 | AE13: 87079578.71 | AF13: 85996672.03 | AG13: 99871514.1 | AH13: 100622247.2 | AI13: =AH13-AG13 -> 750733.06 | AJ13: =N14 -> 118175455.2 | AK13: =AJ13-AH13 -> 17553208.04
A14: Operations | D14: 53256001.56 | E14: 52729994.24 | F14: 89541387.43 | G14: 84136002.69 | H14: 83214862.07 | I14: 93267998.23 | J14: 87079578.71 | K14: 85996672.03 | L14: 99871514.1 | M14: 100622247.2 | N14: 118175455.2 | O14: 125263498.4 | P14: 130986784.7 | Q14: 134767671.4 | R14: 138409767.8 | U14: Maintenance | V14: =B15 -> 0 | W14: =C15 ->  | Y14: 27671305.28 | Z14: 33232383.63 | AA14: 27747271.49 | AB14: 26763321.45 | AC14: 29945001.18 | AD14: 33583460.43 | AE14: 36374713.48 | AF14: 28854345.14 | AG14: 21646171.24 | AH14: 22050503.8 | AI14: 404332.56 | AJ14: =N15 -> 23095217.64 | AK14: 1044713.84
A15: Maintenance | D15: 27671305.28 | E15: 33232383.63 | F15: 27747271.49 | G15: 26763321.45 | H15: 29945001.18 | I15: 33583460.43 | J15: 36374713.48 | K15: 28854345.14 | L15: 21646171.24 | M15: 22050503.8 | N15: 23095217.64 | O15: 23735155.05 | P15: 24693466.36 | Q15: 25406627.38 | R15: 26160167.28 | U15: Billing and Collecting | V15: =B19 -> 0 | Y15: =D19 -> 44060910.87 | Z15: 37645860.69 | AA15: 43381817.41 | AB15: 64273545.97 | AC15: 57378924.85 | AD15: 51611529.22 | AE15: 48598201.98 | AF15: 49176173.74 | AG15: 50924582.68 | AH15: 55077813.66 | AI15: 4153230.977 | AJ15: =N19 -> 54227802.42 | AK15: -850011.2401
A16: SubTotal | B16: =SUM(B14:B15) -> 0 | C16: =SUM(C14:C15) ->  | D16: 80927306.84 | E16: 85962377.87 | F16: 117288658.9 | G16: 110899324.1 | H16: 113159863.2 | I16: =SUM(I14:I15) -> 126851458.7 | J16: 123454292.2 | K16: 114851017.2 | L16: 121517685.3 | M16: 122672751 | N16: =SUM(N14:N15) -> 141270672.8 | O16: =SUM(O14:O15) -> 148998653.4 | P16: 155680251.1 | Q16: 160174298.8 | R16: 164569935.1 | U16: Community Relations | V16: 0 | Y16: 3053878.83 | Z16: 3069045.17 | AA16: 2845057 | AB16: 4445930.77 | AC16: 3230371.15 | AD16: 2562553.08 | AE16: 2228912.77 | AF16: 2210466.04 | AG16: 2212486.78 | AH16: 2285704.87 | AI16: 73218.09 | AJ16: =N20 -> 2373752.78 | AK16: 88047.91
A17: %Change (year over year) | C17: =IF(ISERROR((C16-B16)/B16), "", (C16-B16)/B16) ->  | D17: =IF(ISERROR((D16-HLOOKUP(D11-1,$A$11:C26,6,FALSE))/HLOOKUP(D11-1,$A$11:C26,6,FALSE)), "", (D16-HLOOKUP(D11-1,$A$11:C26,6,FALSE))/HLOOKUP(D11-1,$A$11:C26,6,FALSE)) ->  | E17: =IF(ISERROR((E16-HLOOKUP(E11-1,$A$11:D26,6,FALSE))/HLOOKUP(E11-1,$A$11:D26,6,FALSE)), "", (E16-HLOOKUP(E11-1,$A$11:D26,6,FALSE))/HLOOKUP(E11-1,$A$11:D26,6,FALSE)) -> 0.06221720735 | F17: =IF(ISERROR((F16-HLOOKUP(F11-1,$A$11:E26,6,FALSE))/HLOOKUP(F11-1,$A$11:E26,6,FALSE)), "", (F16-HLOOKUP(F11-1,$A$11:E26,6,FALSE))/HLOOKUP(F11-1,$A$11:E26,6,FALSE)) -> 0.3644185029 | G17: =IF(ISERROR((G16-HLOOKUP(G11-1,$A$11:F26,6,FALSE))/HLOOKUP(G11-1,$A$11:F26,6,FALSE)), "", (G16-HLOOKUP(G11-1,$A$11:F26,6,FALSE))/HLOOKUP(G11-1,$A$11:F26,6,FALSE)) -> -0.05447529914 | H17: =IF(ISERROR((H16-HLOOKUP(H11-1,$A$11:G26,6,FALSE))/HLOOKUP(H11-1,$A$11:G26,6,FALSE)), "", (H16-HLOOKUP(H11-1,$A$11:G26,6,FALSE))/HLOOKUP(H11-1,$A$11:G26,6,FALSE)) -> 0.02038370502 | I17: =IF(ISERROR((I16-HLOOKUP(I11-1,$A$11:H26,6,FALSE))/HLOOKUP(I11-1,$A$11:H26,6,FALSE)), "", (I16-HLOOKUP(I11-1,$A$11:H26,6,FALSE))/HLOOKUP(I11-1,$A$11:H26,6,FALSE)) -> 0.1209933895 | J17: =IF(ISERROR((J16-HLOOKUP(J11-1,$A$11:I26,6,FALSE))/HLOOKUP(J11-1,$A$11:I26,6,FALSE)), "", (J16-HLOOKUP(J11-1,$A$11:I26,6,FALSE))/HLOOKUP(J11-1,$A$11:I26,6,FALSE)) -> -0.0267806654 | K17: =IF(ISERROR((K16-HLOOKUP(K11-1,$A$11:J26,6,FALSE))/HLOOKUP(K11-1,$A$11:J26,6,FALSE)), "", (K16-HLOOKUP(K11-1,$A$11:J26,6,FALSE))/HLOOKUP(K11-1,$A$11:J26,6,FALSE)) -> -0.06968793768 | L17: =IF(ISERROR((L16-HLOOKUP(L11-1,$A$11:K26,6,FALSE))/HLOOKUP(L11-1,$A$11:K26,6,FALSE)), "", (L16-HLOOKUP(L11-1,$A$11:K26,6,FALSE))/HLOOKUP(L11-1,$A$11:K26,6,FALSE)) -> 0.05804622662 | M17: =IF(ISERROR((M16-HLOOKUP(M11-1,$A$11:L26,6,FALSE))/HLOOKUP(M11-1,$A$11:L26,6,FALSE)), "", (M16-HLOOKUP(M11-1,$A$11:L26,6,FALSE))/HLOOKUP(M11-1,$A$11:L26,6,FALSE)) -> 0.009505329342 | N17: =IF(ISERROR((N16-M16)/M16), "", (N16-M16)/M16) -> 0.1516059739 | O17: =IF(ISERROR((O16-N16)/N16), "", (O16-N16)/N16) -> 0.05470336089 | P17: 0.04484334244 | Q17: 0.02886716625 | R17: 0.02744283168 | U17: Administrative and General | V17: 0 | Y17: 87281606.69 | Z17: 105505504.9 | AA17: 100983082.5 | AB17: 105801265.7 | AC17: 100996486 | AD17: 107591891.7 | AE17: 112963516.1 | AF17: 125764586.2 | AG17: 136544163.8 | AH17: 138756914.5 | AI17: 2212750.718 | AJ17: =N21 -> 157165104.7 | AK17: 18408190.21
A18: %Change (Test Year vs Last Rebasing Year - Actual) | N18: =IF(ISERROR((N16-C16)/C16), "", (N16-C16)/C16) ->  | U18: Total OM&A Expenses | V18: =B25 -> 0 | W18: =C25 ->  | Y18: =D25 -> 215323703.2 | Z18: 232182788.7 | AA18: 264498615.8 | AB18: 285420066.6 | AC18: 274765645.3 | AD18: 288617432.6 | AE18: 287244923.1 | AF18: 292002243.1 | AG18: 311198918.6 | AH18: 318793184 | AI18: 7594265.405 | AJ18: =N25 -> 355037332.8 | AK18: 36244148.76
A19: Billing and Collecting | D19: 44060910.87 | E19: 37645860.69 | F19: 43381817.41 | G19: 64273545.97 | H19: 57378924.85 | I19: 51611529.22 | J19: 48598201.98 | K19: 49176173.74 | L19: 50924582.68 | M19: 55077813.66 | N19: 54227802.42 | O19: 56402655.34 | P19: 57407346.09 | Q19: 59563041.89 | R19: 61505587.16 | U19: Adjustments for Total non-recoverable items3
A20: Community Relations | D20: 3053878.83 | E20: 3069045.17 | F20: 2845057 | G20: 4445930.77 | H20: 3230371.15 | I20: 2562553.08 | J20: 2228912.77 | K20: 2210466.04 | L20: 2212486.78 | M20: 2285704.87 | N20: 2373752.78 | O20: 2452852.1 | P20: 2526914.27 | Q20: 2602805.06 | R20: 2679465.58 | U20: Total Recoverable OM&A Expenses | V20: =V18-V19 -> 0 | W20: =W18-W19 ->  | X20: =X18-X19 ->  | Y20: =IF(Y11<=2016, 0, Y18-Y19) -> 215323703.2 | Z20: 232182788.7 | AA20: 264498615.8 | AB20: 285420066.6 | AC20: 274765645.3 | AD20: 288617432.6 | AE20: 287244923.1 | AF20: 292002243.1 | AG20: =IF(AG11<=2016, 0, AG18-AG19) -> 311198918.6 | AH20: =IF(AH11<=2016, 0, AH18-AH19) -> 318793184 | AI20: =AI18-AI19 -> 7594265.405 | AJ20: =AJ18-AJ19 -> 355037332.8 | AK20: =AK18-AK19 -> 36244148.76
A21: Administrative and General | D21: 87281606.69 | E21: 105505504.9 | F21: 100983082.5 | G21: 105801265.7 | H21: 100996486 | I21: 107591891.7 | J21: 112963516.1 | K21: 125764586.2 | L21: 136544163.8 | M21: 138756914.5 | N21: 157165104.7 | O21: 164092624.5 | P21: 173861570.3 | Q21: 181661261.7 | R21: 186354520.4 | U21: Variance from previous year | Y21: =IF(Y11<=2017, 0, Y20-U20) -> 0 | Z21: =IF(Z11<=2016, 0, Z20-Y20) -> 16859085.44 | AA21: =IF(AA11<=2016, 0, AA20-Z20) -> 32315827.16 | AB21: 20921450.78 | AC21: -10654421.31 | AD21: 13851787.32 | AE21: -1372509.546 | AF21: 4757320.07 | AG21: 19196675.47 | AH21: 7594265.405 | AJ21: =AJ20-AH20 -> 36244148.76
A22: SubTotal | B22: =SUM(B19:B21) -> 0 | C22: =SUM(C19:C21) ->  | D22: 134396396.4 | E22: 146220410.8 | F22: 147209956.9 | G22: 174520742.5 | H22: 161605782 | I22: 161765974 | J22: 163790630.9 | K22: 177151226 | L22: =SUM(L19:L21) -> 189681233.3 | M22: =SUM(M19:M21) -> 196120433.1 | N22: =SUM(N19:N21) -> 213766659.9 | O22: =SUM(O19:O21) -> 222948132 | P22: =SUM(P19:P21) -> 233795830.7 | Q22: 243827108.7 | R22: 250539573.2 | U22: Percent change (year over year) | Y22: =IF(Y11<=2016, 0, IF(ISERROR(Y21/U20), "", Y21/U20)) ->  | Z22: =IF(Z11<=2016, 0, IF(ISERROR(Z21/Y20), "", Z21/Y20)) -> 0.07829646802 | AA22: =IF(AA11<=2016, 0, IF(ISERROR(AA21/Z20), "", AA21/Z20)) -> 0.1391826989 | AB22: 0.07909852651 | AC22: -0.03732891468 | AD22: 0.05041309771 | AE22: -0.004755463085 | AF22: 0.01656189435 | AG22: 0.06574153425 | AH22: 0.02440325127 | AJ22: =IF(ISERROR(AJ21/AH20), "", AJ21/AH20) -> 0.1136917305
A23: %Change (year over year) | C23: =IF(ISERROR((C22-B22)/B22), "", (C22-B22)/B22) ->  | D23: =IF(ISERROR((D22-HLOOKUP(D11-1,$A$11:C26,12,FALSE))/HLOOKUP(D11-1,$A$11:C26,12,FALSE)), "", (D22-HLOOKUP(D11-1,$A$11:C26,12,FALSE))/HLOOKUP(D11-1,$A$11:C26,12,FALSE)) ->  | E23: =IF(ISERROR((E22-HLOOKUP(E11-1,$A$11:D26,12,FALSE))/HLOOKUP(E11-1,$A$11:D26,12,FALSE)), "", (E22-HLOOKUP(E11-1,$A$11:D26,12,FALSE))/HLOOKUP(E11-1,$A$11:D26,12,FALSE)) -> 0.08797865666 | F23: =IF(ISERROR((F22-HLOOKUP(F11-1,$A$11:E26,12,FALSE))/HLOOKUP(F11-1,$A$11:E26,12,FALSE)), "", (F22-HLOOKUP(F11-1,$A$11:E26,12,FALSE))/HLOOKUP(F11-1,$A$11:E26,12,FALSE)) -> 0.006767496447 | G23: =IF(ISERROR((G22-HLOOKUP(G11-1,$A$11:F26,12,FALSE))/HLOOKUP(G11-1,$A$11:F26,12,FALSE)), "", (G22-HLOOKUP(G11-1,$A$11:F26,12,FALSE))/HLOOKUP(G11-1,$A$11:F26,12,FALSE)) -> 0.1855226788 | H23: =IF(ISERROR((H22-HLOOKUP(H11-1,$A$11:G26,12,FALSE))/HLOOKUP(H11-1,$A$11:G26,12,FALSE)), "", (H22-HLOOKUP(H11-1,$A$11:G26,12,FALSE))/HLOOKUP(H11-1,$A$11:G26,12,FALSE)) -> -0.074002438 | I23: =IF(ISERROR((I22-HLOOKUP(I11-1,$A$11:H26,12,FALSE))/HLOOKUP(I11-1,$A$11:H26,12,FALSE)), "", (I22-HLOOKUP(I11-1,$A$11:H26,12,FALSE))/HLOOKUP(I11-1,$A$11:H26,12,FALSE)) -> 0.0009912511267 | J23: =IF(ISERROR((J22-HLOOKUP(J11-1,$A$11:I26,12,FALSE))/HLOOKUP(J11-1,$A$11:I26,12,FALSE)), "", (J22-HLOOKUP(J11-1,$A$11:I26,12,FALSE))/HLOOKUP(J11-1,$A$11:I26,12,FALSE)) -> 0.01251596287 | K23: =IF(ISERROR((K22-HLOOKUP(K11-1,$A$11:J26,12,FALSE))/HLOOKUP(K11-1,$A$11:J26,12,FALSE)), "", (K22-HLOOKUP(K11-1,$A$11:J26,12,FALSE))/HLOOKUP(K11-1,$A$11:J26,12,FALSE)) -> 0.08157118034 | L23: =IF(ISERROR((L22-HLOOKUP(L11-1,$A$11:K26,12,FALSE))/HLOOKUP(L11-1,$A$11:K26,12,FALSE)), "", (L22-HLOOKUP(L11-1,$A$11:K26,12,FALSE))/HLOOKUP(L11-1,$A$11:K26,12,FALSE)) -> 0.07073057063 | M23: =IF(ISERROR((M22-HLOOKUP(M11-1,$A$11:L26,12,FALSE))/HLOOKUP(M11-1,$A$11:L26,12,FALSE)), "", (M22-HLOOKUP(M11-1,$A$11:L26,12,FALSE))/HLOOKUP(M11-1,$A$11:L26,12,FALSE)) -> 0.03394747954 | N23: =IF(ISERROR((N22-M22)/M22), "", (N22-M22)/M22) -> 0.08997648333 | O23: =IF(ISERROR((O22-N22)/N22), "", (O22-N22)/N22) -> 0.04295090758 | P23: =IF(ISERROR((P22-O22)/O22), "", (P22-O22)/O22) -> 0.04865570565 | Q23: 0.04290614576 | R23: 0.02752960713 | U23: Percent Change: Test year vs. Most Current Actual | AJ23: =IF(ISERROR((AJ20-AG20)/AG20), "", (AJ20-AG20)/AG20) -> 0.1408694296
A24: %Change (Test Year vs Last Rebasing Year - Actual) | N24: =IF(ISERROR((N22-C22)/C22), "", (N22-C22)/C22) ->  | U24: Simple average of % variance for all years | AJ24: =IF(ISERROR(AVERAGEIF(AA22:AJ22,"<>0")),0,AVERAGEIF(AA22:AJ22,"<>0")) -> 0.04966759508
A25: Total | B25: =SUM(B22,B16) -> 0 | C25: =SUM(C22,C16) ->  | D25: 215323703.2 | E25: 232182788.7 | F25: 264498615.8 | G25: 285420066.6 | H25: 274765645.3 | I25: =SUM(I22,I16) -> 288617432.6 | J25: =SUM(J22,J16) -> 287244923.1 | K25: 292002243.1 | L25: =SUM(L22,L16) -> 311198918.6 | M25: =SUM(M22,M16) -> 318793184 | N25: =SUM(N22,N16) -> 355037332.8 | O25: =SUM(O22,O16) -> 371946785.4 | P25: =SUM(P22,P16) -> 389476081.7 | Q25: 404001407.4 | R25: 415109508.3 | U25: Compound Annual Growth Rate for all years | AK25: =IF((AJ20-Y20)=0, "", (AJ20/Y20)^(1/(2027-2017))-1) -> 0.05127955435
A26: %Change (year over year) | C26: =IF(ISERROR((C25-B25)/B25), "", (C25-B25)/B25) ->  | D26: =IF(ISERROR((D25-HLOOKUP(D11-1,$A$11:C26,15,FALSE))/HLOOKUP(D11-1,$A$11:C26,15,FALSE)), "", (D25-HLOOKUP(D11-1,$A$11:C26,15,FALSE))/HLOOKUP(D11-1,$A$11:C26,15,FALSE)) ->  | E26: =IF(ISERROR((E25-HLOOKUP(E11-1,$A$11:D26,15,FALSE))/HLOOKUP(E11-1,$A$11:D26,15,FALSE)), "", (E25-HLOOKUP(E11-1,$A$11:D26,15,FALSE))/HLOOKUP(E11-1,$A$11:D26,15,FALSE)) -> 0.07829646802 | F26: =IF(ISERROR((F25-HLOOKUP(F11-1,$A$11:E26,15,FALSE))/HLOOKUP(F11-1,$A$11:E26,15,FALSE)), "", (F25-HLOOKUP(F11-1,$A$11:E26,15,FALSE))/HLOOKUP(F11-1,$A$11:E26,15,FALSE)) -> 0.1391826989 | G26: =IF(ISERROR((G25-HLOOKUP(G11-1,$A$11:F26,15,FALSE))/HLOOKUP(G11-1,$A$11:F26,15,FALSE)), "", (G25-HLOOKUP(G11-1,$A$11:F26,15,FALSE))/HLOOKUP(G11-1,$A$11:F26,15,FALSE)) -> 0.07909852651 | H26: =IF(ISERROR((H25-HLOOKUP(H11-1,$A$11:G26,15,FALSE))/HLOOKUP(H11-1,$A$11:G26,15,FALSE)), "", (H25-HLOOKUP(H11-1,$A$11:G26,15,FALSE))/HLOOKUP(H11-1,$A$11:G26,15,FALSE)) -> -0.03732891468 | I26: =IF(ISERROR((I25-HLOOKUP(I11-1,$A$11:H26,15,FALSE))/HLOOKUP(I11-1,$A$11:H26,15,FALSE)), "", (I25-HLOOKUP(I11-1,$A$11:H26,15,FALSE))/HLOOKUP(I11-1,$A$11:H26,15,FALSE)) -> 0.05041309771 | J26: =IF(ISERROR((J25-HLOOKUP(J11-1,$A$11:I26,15,FALSE))/HLOOKUP(J11-1,$A$11:I26,15,FALSE)), "", (J25-HLOOKUP(J11-1,$A$11:I26,15,FALSE))/HLOOKUP(J11-1,$A$11:I26,15,FALSE)) -> -0.004755463085 | K26: =IF(ISERROR((K25-HLOOKUP(K11-1,$A$11:J26,15,FALSE))/HLOOKUP(K11-1,$A$11:J26,15,FALSE)), "", (K25-HLOOKUP(K11-1,$A$11:J26,15,FALSE))/HLOOKUP(K11-1,$A$11:J26,15,FALSE)) -> 0.01656189435 | L26: =IF(ISERROR((L25-HLOOKUP(L11-1,$A$11:K26,15,FALSE))/HLOOKUP(L11-1,$A$11:K26,15,FALSE)), "", (L25-HLOOKUP(L11-1,$A$11:K26,15,FALSE))/HLOOKUP(L11-1,$A$11:K26,15,FALSE)) -> 0.06574153425 | M26: =IF(ISERROR((M25-HLOOKUP(M11-1,$A$11:L26,15,FALSE))/HLOOKUP(M11-1,$A$11:L26,15,FALSE)), "", (M25-HLOOKUP(M11-1,$A$11:L26,15,FALSE))/HLOOKUP(M11-1,$A$11:L26,15,FALSE)) -> 0.02440325127 | N26: =IF(ISERROR((N25-M25)/M25), "", (N25-M25)/M25) -> 0.1136917305 | O26: =IF(ISERROR((O25-N25)/N25), "", (O25-N25)/N25) -> 0.04762725238 | P26: =IF(ISERROR((P25-O25)/O25), "", (P25-O25)/O25) -> 0.04712850604 | Q26: 0.03729452554 | R26: 0.0274952033 | U26: ="Compound Growth Rate (" & 2027 - 3 & " vs. " & 2017 & " Actuals)" -> Compound Growth Rate (2024 vs. 2017 Actuals) | AJ26: =IF((AF20-Y20)=0, "", (AF20/Y20)^(1/(2027-3-2016))-1) -> 0.03881160678
B29: =B12 -> 2016 Last Rebasing Year OEB Approved | C29: 2016 Last Rebasing Year Actuals | D29: 2017 Actuals | E29: 2018 Actuals | F29: 2019 Actuals | G29: 2020 Actuals | H29: 2021 Actuals | I29: 2022 Actuals | J29: 2023 Actuals | K29: 2024 Actuals | L29: 2025 Bridge Year | M29: 2026 Bridge Year | N29: 2027 Test Year | O29: =O12 -> 2028 Forecast Year | P29: 2029 Forecast Year | Q29: 2030 Forecast Year | R29: 2031 Forecast Year
A30: Operations4 | B30: =B14 -> 0 | D30: 53256001.56 | E30: 52729994.24 | F30: 89541387.43 | G30: 84136002.69 | H30: 83214862.07 | I30: 93267998.23 | J30: 87079578.71 | K30: 85996672.03 | L30: 99871514.1 | M30: 100622247.2 | N30: 118175455.2 | O30: =O14 -> 125263498.4 | P30: 130986784.7 | Q30: 134767671.4 | R30: 138409767.8
A31: Maintenance5 | B31: 0 | D31: 27671305.28 | E31: 33232383.63 | F31: 27747271.49 | G31: 26763321.45 | H31: 29945001.18 | I31: 33583460.43 | J31: 36374713.48 | K31: 28854345.14 | L31: 21646171.24 | M31: 22050503.8 | N31: 23095217.64 | O31: =O15 -> 23735155.05 | P31: 24693466.36 | Q31: 25406627.38 | R31: 26160167.28
A32: Billing and Collecting6 | B32: =B19 -> 0 | D32: 44060910.87 | E32: 37645860.69 | F32: 43381817.41 | G32: 64273545.97 | H32: 57378924.85 | I32: 51611529.22 | J32: 48598201.98 | K32: 49176173.74 | L32: 50924582.68 | M32: 55077813.66 | N32: 54227802.42 | O32: =O19 -> 56402655.34 | P32: 57407346.09 | Q32: 59563041.89 | R32: 61505587.16
A33: Community Relations7 | B33: 0 | D33: 3053878.83 | E33: 3069045.17 | F33: 2845057 | G33: 4445930.77 | H33: 3230371.15 | I33: 2562553.08 | J33: 2228912.77 | K33: 2210466.04 | L33: 2212486.78 | M33: 2285704.87 | N33: 2373752.78 | O33: =O20 -> 2452852.1 | P33: 2526914.27 | Q33: 2602805.06 | R33: 2679465.58
A34: Administrative and General8 | B34: 0 | D34: 87281606.69 | E34: 105505504.9 | F34: 100983082.5 | G34: 105801265.7 | H34: 100996486 | I34: 107591891.7 | J34: 112963516.1 | K34: 125764586.2 | L34: 136544163.8 | M34: 138756914.5 | N34: 157165104.7 | O34: =O21 -> 164092624.5 | P34: 173861570.3 | Q34: 181661261.7 | R34: 186354520.4
A35: Total | B35: =SUM(B30:B34) -> 0 | C35: =SUM(C30:C34) ->  | D35: =SUM(D30:D34) -> 215323703.2 | E35: 232182788.7 | F35: =SUM(F30:F34) -> 264498615.8 | G35: =SUM(G30:G34) -> 285420066.6 | H35: 274765645.3 | I35: 288617432.6 | J35: 287244923.1 | K35: 292002243.1 | L35: 311198918.6 | M35: 318793184 | N35: 355037332.8 | O35: =SUM(O30:O34) -> 371946785.4 | P35: 389476081.7 | Q35: 404001407.4 | R35: 415109508.3
A36: %Change (year over year) | C36: =IF(ISERROR((C35-B35)/B35), "", (C35-B35)/B35) ->  | D36: =IF(Y11<=2016,"",IF(Y11=2016+1,IF(ISERROR((D35-$C$35)/$C$35),"",(D35-$C$35)/$C$35),IF(ISERROR((D35-C35)/C35),"",(D35-C35)/C35))) ->  | E36: 0.07829646802 | F36: 0.1391826989 | G36: 0.07909852651 | H36: -0.03732891468 | I36: 0.05041309771 | J36: -0.004755463085 | K36: 0.01656189435 | L36: 0.06574153425 | M36: 0.02440325127 | N36: =IF(AJ11<=2016,"",IF(AJ11=2016+1,IF(ISERROR((N35-$C$35)/$C$35),"",(N35-$C$35)/$C$35),IF(ISERROR((N35-M35)/M35),"",(N35-M35)/M35))) -> 0.1136917305 | O36: =IF(AL11<=2016,"",IF(AL11=2016+1,IF(ISERROR((O35-$C$35)/$C$35),"",(O35-$C$35)/$C$35),IF(ISERROR((O35-N35)/N35),"",(O35-N35)/N35))) -> 0.04762725238 | P36: =IF(AM11<=2016,"",IF(AM11=2016+1,IF(ISERROR((P35-$C$35)/$C$35),"",(P35-$C$35)/$C$35),IF(ISERROR((P35-O35)/O35),"",(P35-O35)/O35))) -> 0.04712850604 | Q36: =IF(AN11<=2016,"",IF(AN11=2016+1,IF(ISERROR((Q35-$C$35)/$C$35),"",(Q35-$C$35)/$C$35),IF(ISERROR((Q35-P35)/P35),"",(Q35-P35)/P35))) -> 0.03729452554 | R36: =IF(AO11<=2016,"",IF(AO11=2016+1,IF(ISERROR((R35-$C$35)/$C$35),"",(R35-$C$35)/$C$35),IF(ISERROR((R35-Q35)/Q35),"",(R35-Q35)/Q35))) -> 0.0274952033
A38: Note:
A40: 1 Historical actuals going back to the last cost of service application are required to be entered by the applicant.
A41: 2 Recoverable OM&A that is included on these tables should be identical to the recoverable OM&A that is shown for the corresponding periods on Appendix 2-JB.
A42: 3 For unrecoverable OM&A Expenses see Section 2.4.3.7
A43: 4 USoA included in Operations: 5005, 5010, 5012, 5014, 5015, 5016, 5017, 5020, 5025, 5030, 5035, 5040, 5045, 5050, 5055, 5060, 5065, 5070, 5075, 5085, 5090, 5095, 5096
A44: 5 USoA included in Maintenance: 5305, 5310, 5315, 5320, 5325, 5330, 5335, 5340
A45: 6 USoA included in Billing and Collecting: 5105, 5110, 5112, 5114, 5120, 5125, 5130, 5135, 5145, 5150, 5155, 5160, 5165, 5170, 5172, 5175, 5178, 5195
A46: 7 USoA included in Community Relations: 5405, 5410, 5415, 5420, 5425
A47: 8 USoA included in Administrative and General: 5505, 5510, 5515, 5520, 5605, 5610, 5615, 5620, 5625, 5630, 5635, 5640, 5645, 5646, 5647, 5650, 5655, 5660, 5665, 5670, 5672, 5675, 5680, 5681, 5685, 5695 & 6205 (sub-account LEAP funding)
